fUSD/lending_fUSD_20250119
["ID","MTS","AMOUNT","RATE_DAILY","PERIOD"]
[349534039,1737283854734,-500.0,0.00019452,2]
[349534040,1737283854743,-500.0,0.00019452,2]
[349534041,1737283854753,-500.0,0.00019452,2]
[349534042,1737283854763,-631.77,0.00019452,2]
[349534043,1737283854772,-2323.77,0.00019452,2]
[349534044,1737283854782,-635.02,0.00019452,2]
[349534045,1737283854791,-500.0,0.00019452,2]
[349534046,1737283854801,-500.0,0.00019452,2]
[349534047,1737283854810,-500.0,0.00019452,2]
[349534048,1737283854819,-500.0,0.00019452,2]
[349534049,1737283854829,-577.63,0.00019452,2]
[349534050,1737283854837,-500.0,0.00019452,2]
[349534051,1737283854846,-500.0,0.00019452,2]
[349534052,1737283854855,-209.463894,0.00019452,2]
[349534053,1737283854864,-500.0,0.00019452,2]
[349534054,1737283854873,-3097.0,0.00019452,2]
[349534055,1737283854882,-500.0,0.00019452,2]
[349534056,1737283854892,-500.0,0.00019452,2]
[349534057,1737283854901,-1005.63,0.00019452,2]
[349534058,1737283854911,-500.0,0.00019452,2]
[349534059,1737283854920,-500.0,0.00019452,2]
[349534060,1737283854930,-500.0,0.00019452,2]
[349534061,1737283854939,-500.0,0.00019452,2]
[349534062,1737283854949,-500.0,0.00019452,2]
[349534063,1737283854958,-500.0,0.00019452,2]
[349534064,1737283854968,-500.0,0.00019452,2]
[349534065,1737283854977,-500.0,0.00019452,2]
[349534066,1737283854986,-500.0,0.00019452,2]
[349534067,1737283854995,-518.63323433,0.00019452,2]
[349534068,1737283855005,-11879.94,0.00019452,2]
[349534069,1737283855015,-1256.94,0.00019452,2]
[349534070,1737283855024,-500.0,0.00019452,2]
[349534071,1737283855033,-1216.46,0.00019452,2]
[349534072,1737283855042,-492.85898689,0.00019452,2]
[349534073,1737283855052,-608.69,0.00019452,2]
[349534074,1737283855062,-500.0,0.00019452,2]
[349534075,1737283855071,-500.0,0.00019452,2]
[349534076,1737283855080,-500.0,0.00019452,2]
[349534077,1737283855089,-500.0,0.00019452,2]
[349534078,1737283855098,-500.0,0.00019452,2]
[349534079,1737283855107,-500.0,0.00019452,2]
[349534080,1737283855115,-688.32,0.00019452,2]
[349534081,1737283855124,-3397.4,0.00019452,2]
[349534082,1737283855133,-500.0,0.00019452,2]
[349534083,1737283855142,-500.0,0.00019452,2]
[349534084,1737283855152,-500.0,0.00019452,2]
[349534085,1737283855161,-500.0,0.00019452,2]
[349534086,1737283855170,-500.0,0.00019452,2]
[349534087,1737283855179,-500.0,0.00019452,2]
[349534088,1737283855190,-500.0,0.00019452,2]
[349534089,1737283855202,-500.0,0.00019452,2]
[349534090,1737283855211,-500.0,0.00019452,2]
[349534091,1737283855220,-547.49822178,0.00019452,2]
[349534092,1737283855229,-500.0,0.00019452,2]
[349534093,1737283855238,-500.0,0.00019452,2]
[349534094,1737283855252,-500.0,0.00019452,2]
[349534095,1737283855261,-500.0,0.00019452,2]
[349534096,1737283855270,-500.0,0.00019452,2]
[349534097,1737283855279,-500.0,0.00019452,2]
[349534098,1737283855288,-493.5332179,0.00019452,2]
[349534099,1737283855298,-500.0,0.00019452,2]
[349534100,1737283855307,-500.0,0.00019452,2]
[349534101,1737283855316,-1499.614895,0.00019452,2]
[349534102,1737283855327,-5667.54,0.00019452,2]
[349534103,1737283855336,-1735.14,0.00019452,2]
[349534104,1737283855346,-500.0,0.00019452,2]
[349534105,1737283855355,-500.0,0.00019452,2]
[349534106,1737283855364,-151.0,0.00019452,2]
[349534107,1737283855373,-500.0,0.00019452,2]
[349534108,1737283855382,-508.79731797,0.00019452,2]
[349534109,1737283855391,-942.38,0.00019452,2]
[349534110,1737283855400,-524.23455275,0.00019452,2]
[349534111,1737283855409,-500.0,0.00019452,2]
[349534112,1737283855419,-500.0,0.00019452,2]
[349534113,1737283855428,-1499.614895,0.00019452,2]
[349534114,1737283855438,-500.0,0.00019452,2]
[349534115,1737283855447,-500.0,0.00019452,2]
[349534116,1737283855456,-500.0,0.00019452,2]
[349534117,1737283855465,-500.0,0.00019452,2]
[349534118,1737283855474,-500.0,0.00019452,2]
[349534119,1737283855483,-617.68,0.00019452,2]
[349534120,1737283855493,-500.0,0.00019452,2]
[349534121,1737283855502,-442.35977595,0.00019452,2]
[349534122,1737283855511,-500.0,0.00019452,2]
[349534123,1737283855520,-500.0,0.00019452,2]
[349534124,1737283855529,-500.0,0.00019452,2]
[349534125,1737283855538,-3188.95,0.00019452,2]
[349534126,1737283855547,-500.0,0.00019452,2]
[349534127,1737283855557,-501.81632654,0.00019452,2]
[349534128,1737283855566,-2260.69,0.00019452,2]
[349534129,1737283855575,-500.0,0.00019452,2]
[349534130,1737283855584,-500.0,0.00019452,2]
[349534131,1737283855594,-500.0,0.00019452,2]
[349534132,1737283855603,-1124.05,0.00019452,2]
[349534133,1737283855612,-500.0,0.00019452,2]
[349534134,1737283855622,-500.0,0.00019452,2]
[349534135,1737283855631,-500.0,0.00019452,2]
[349534136,1737283855642,-544.77,0.00019452,2]
[349534137,1737283855652,-506.23936057,0.00019452,2]
[349534138,1737283855663,-500.0,0.00019452,2]
[349534139,1737283855672,-500.0,0.00019452,2]
[349534140,1737283855681,-1632.27,0.00019452,2]
[349534141,1737283855690,-500.0,0.00019452,2]
[349534142,1737283855700,-409.00861035,0.00019452,2]
[349534143,1737283855711,-550.47,0.00019452,2]
[349534144,1737283855720,-1360.05,0.00019452,2]
[349534145,1737283855730,-300.0,0.00019452,2]
[349534146,1737283855739,-730.23,0.00019452,2]
[349534147,1737283855750,-500.0,0.00019452,2]
[349534148,1737283855761,-500.0,0.00019452,2]
[349534149,1737283855771,-1209.91,0.00019452,2]
[349534150,1737283855779,-500.0,0.00019452,2]
[349534151,1737283855789,-500.0,0.00019452,2]
[349534152,1737283855798,-439.03747655,0.00019452,2]
[349534153,1737283855807,-500.0,0.00019452,2]
[349534154,1737283855816,-500.0,0.00019452,2]
[349534155,1737283855826,-962.98,0.00019452,2]
[349534156,1737283855835,-520.57696219,0.00019452,2]
[349534157,1737283855847,-500.0,0.00019452,2]
[349534158,1737283855859,-516.87699256,0.00019452,2]
[349534159,1737283855868,-500.0,0.00019452,2]
[349534160,1737283855877,-500.0,0.00019452,2]
[349534161,1737283855887,-500.0,0.00019452,2]
[349534162,1737283855896,-1043.59,0.00019452,2]
[349534163,1737283855905,-704.36,0.00019452,2]
[349534164,1737283855916,-500.0,0.00019452,2]
[349534165,1737283855927,-543.14,0.00019452,2]
[349534166,1737283855938,-500.0,0.00019452,2]
[349534167,1737283855947,-2894.56,0.00019452,2]
[349534168,1737283855956,-500.0,0.00019452,2]
[349534169,1737283855966,-500.0,0.00019452,2]
[349534170,1737283855975,-500.0,0.00019452,2]
[349534171,1737283855984,-500.0,0.00019452,2]
[349534172,1737283855993,-1112.25,0.00019452,2]
[349534173,1737283856002,-500.0,0.00019452,2]
[349534174,1737283856011,-1126.32,0.00019452,2]
[349534175,1737283856020,-541.55,0.00019452,2]
[349534176,1737283856029,-1448.99,0.00019452,2]
[349534177,1737283856039,-500.0,0.00019452,2]
[349534178,1737283856048,-500.0,0.00019452,2]
[349534179,1737283856058,-500.0,0.00019452,2]
[349534180,1737283856067,-913.02,0.00019452,2]
[349534181,1737283856077,-500.0,0.00019452,2]
[349534182,1737283856086,-507.84458715,0.00019452,2]
[349534183,1737283856095,-500.0,0.00019452,2]
[349534184,1737283856104,-500.0,0.00019452,2]
[349534185,1737283856113,-500.0,0.00019452,2]
[349534186,1737283856123,-500.0,0.00019452,2]
[349534187,1737283856131,-500.0,0.00019452,2]
[349534188,1737283856141,-1265.52,0.00019452,2]
[349534189,1737283856150,-4009.74,0.00019452,2]
[349534190,1737283856159,-493.83503633,0.00019452,2]
[349534191,1737283856171,-500.0,0.00019452,2]
[349534192,1737283856180,-500.0,0.00019452,2]
[349534193,1737283856189,-500.0,0.00019452,2]
[349534194,1737283856198,-700.51,0.00019452,2]
[349534195,1737283856208,-500.0,0.00019452,2]
[349534196,1737283856220,-500.0,0.00019452,2]
[349534197,1737283856230,-500.0,0.00019452,2]
[349534198,1737283856241,-500.0,0.00019452,2]
[349534199,1737283856251,-500.0,0.00019452,2]
[349534200,1737283856266,-500.0,0.00019452,2]
[349534201,1737283856275,-500.0,0.00019452,2]
[349534202,1737283856285,-940.25,0.00019452,2]
[349534203,1737283856295,-500.0,0.00019452,2]
[349534204,1737283856307,-518.75433661,0.00019452,2]
[349534205,1737283856316,-2618.63,0.00019452,2]
[349534206,1737283856328,-500.0,0.00019452,2]
[349534207,1737283856338,-500.0,0.00019452,2]
[349534208,1737283856348,-500.0,0.00019452,2]
[349534209,1737283856357,-500.0,0.00019452,2]
[349534210,1737283856366,-600.2,0.00019452,2]
[349534211,1737283856376,-500.0,0.00019452,2]
[349534212,1737283856386,-500.0,0.00019452,2]
[349534213,1737283856395,-500.0,0.00019452,2]
[349534214,1737283856404,-7315.83,0.00019452,2]
[349534215,1737283856415,-589.33518177,0.00019452,2]
[349534216,1737283856424,-500.0,0.00019452,2]
[349534217,1737283856434,-500.0,0.00019452,2]
[349534218,1737283856443,-500.0,0.00019452,2]
[349534219,1737283856451,-1886.57,0.00019452,2]
[349534220,1737283856461,-2144.05,0.00019452,2]
[349534221,1737283856471,-1320.33,0.00019452,2]
[349534222,1737283856480,-500.0,0.00019452,2]
[349534223,1737283856489,-500.0,0.00019452,2]
[349534224,1737283856498,-500.0,0.00019452,2]
[349534225,1737283856507,-1833.46,0.00019452,2]
[349534226,1737283856517,-500.0,0.00019452,2]
[349534227,1737283856526,-500.0,0.00019452,2]
[349534228,1737283856535,-500.0,0.00019452,2]
[349534229,1737283856545,-1146.48,0.00019452,2]
[349534230,1737283856554,-500.0,0.00019452,2]
[349534231,1737283856684,-6964.65,0.00019452,2]
[349534232,1737283856694,-500.0,0.00019452,2]
[349534233,1737283856703,-500.0,0.00019452,2]
[349534234,1737283856712,-500.0,0.00019452,2]
[349534235,1737283856721,-1729.83,0.00019452,2]
[349534236,1737283856730,-500.0,0.00019452,2]
[349534237,1737283856739,-500.0,0.00019452,2]
[349534238,1737283856748,-2349.68,0.00019452,2]
[349534239,1737283856757,-500.0,0.00019452,2]
[349534240,1737283856766,-500.0,0.00019452,2]
[349534241,1737283856775,-518.09992258,0.00019452,2]
[349534242,1737283856784,-500.0,0.00019452,2]
[349534243,1737283856794,-2142.93,0.00019452,2]
[349534244,1737283856807,-500.0,0.00019452,2]
[349534245,1737283856816,-500.0,0.00019452,2]
[349534246,1737283856825,-1744.21,0.00019452,2]
[349534247,1737283856835,-500.0,0.00019452,2]
[349534248,1737283856844,-686.43,0.00019452,2]
[349534249,1737283856854,-2892.09,0.00019452,2]
[349534250,1737283856864,-151.0,0.00019452,2]
[349534251,1737283856874,-506.81442106,0.00019452,2]
[349534252,1737283856883,-500.0,0.00019452,2]
[349534253,1737283856892,-500.0,0.00019452,2]
[349534254,1737283856901,-151.0,0.00019452,2]
[349534255,1737283856911,-500.0,0.00019452,2]
[349534256,1737283856921,-500.0,0.00019452,2]
[349534257,1737283856930,-1002.08,0.00019452,2]
[349534258,1737283856939,-205.56,0.00019452,2]
[349534259,1737283856949,-623.62,0.00019452,2]
[349534260,1737283856958,-500.0,0.00019452,2]
[349534261,1737283856968,-770.77,0.00019452,2]
[349534262,1737283856978,-500.0,0.00019452,2]
[349534263,1737283856988,-9460.13,0.00019452,2]
[349534264,1737283856998,-404.60611995,0.00019452,2]
[349534265,1737283857008,-2072.12,0.00019452,2]
[349534266,1737283857017,-500.0,0.00019452,2]
[349534267,1737283857027,-500.0,0.00019452,2]
[349534268,1737283857037,-4098.31,0.00019452,2]
[349534269,1737283857047,-500.0,0.00019452,2]
[349534270,1737283857057,-500.0,0.00019452,2]
[349534271,1737283857067,-503.74,0.00019452,2]
[349534272,1737283857077,-500.0,0.00019452,2]
[349534273,1737283857086,-509.25,0.00019452,2]
[349534274,1737283857096,-500.0,0.00019452,2]
[349534275,1737283857105,-500.0,0.00019452,2]
[349534276,1737283857114,-500.0,0.00019452,2]
[349534277,1737283857124,-500.0,0.00019452,2]
[349534278,1737283857134,-500.0,0.00019452,2]
[349534279,1737283857143,-500.0,0.00019452,2]
[349534280,1737283857152,-1622.26,0.00019452,2]
[349534281,1737283857163,-500.0,0.00019452,2]
[349534282,1737283857171,-500.0,0.00019452,2]
[349534283,1737283857181,-500.0,0.00019452,2]
[349534284,1737283857191,-839.58,0.00019452,2]
[349534285,1737283857202,-500.0,0.00019452,2]
[349534286,1737283857213,-500.0,0.00019452,2]
[349534287,1737283857222,-746.16,0.00019452,2]
[349534288,1737283857231,-622.13,0.00019452,2]
[349534289,1737283857243,-500.0,0.00019452,2]
[349534290,1737283857257,-151.0,0.00019452,2]
[349534291,1737283857267,-514.78850625,0.00019452,2]
[349534292,1737283857277,-2122.49,0.00019452,2]
[349534293,1737283857287,-700.78,0.00019452,2]
[349534294,1737283857297,-500.0,0.00019452,2]
[349534295,1737283857307,-1394.781451,0.00019452,2]
[349534296,1737283857319,-500.0,0.00019452,2]
[349534297,1737283857328,-500.0,0.00019452,2]
[349534298,1737283857338,-152.135875,0.00019452,2]
[349534299,1737283857348,-500.0,0.00019452,2]
[349534300,1737283857359,-509.05857367,0.00019452,2]
[349534301,1737283857368,-6710.42,0.00019452,2]
[349534302,1737283857377,-500.0,0.00019452,2]
[349534303,1737283857387,-968.36,0.00019452,2]
[349534304,1737283857396,-500.0,0.00019452,2]
[349534305,1737283857405,-1394.781451,0.00019452,2]
[349534306,1737283857415,-500.0,0.00019452,2]
[349534307,1737283857424,-500.0,0.00019452,2]
[349534308,1737283857433,-500.0,0.00019452,2]
[349534309,1737283857442,-500.0,0.00019452,2]
[349534310,1737283857451,-2138.74,0.00019452,2]
[349534311,1737283857460,-2990.26,0.00019452,2]
[349534312,1737283857469,-500.0,0.00019452,2]
[349534313,1737283857479,-500.0,0.00019452,2]
[349534314,1737283857488,-500.0,0.00019452,2]
[349534315,1737283857497,-939.99,0.00019452,2]
[349534316,1737283857506,-1497.89,0.00019452,2]
[349534317,1737283857517,-500.0,0.00019452,2]
[349534318,1737283857527,-500.0,0.00019452,2]
[349534319,1737283857538,-500.0,0.00019452,2]
[349534320,1737283857549,-500.0,0.00019452,2]
[349534321,1737283857560,-500.0,0.00019452,2]
[349534322,1737283857570,-500.0,0.00019452,2]
[349534323,1737283857580,-500.0,0.00019452,2]
[349534324,1737283857590,-1550.84,0.00019452,2]
[349534325,1737283857601,-500.0,0.00019452,2]
[349534326,1737283857611,-500.0,0.00019452,2]
[349534327,1737283857623,-500.0,0.00019452,2]
[349534328,1737283857634,-500.0,0.00019452,2]
[349534329,1737283857643,-500.0,0.00019452,2]
[349534330,1737283857653,-1454.18,0.00019452,2]
[349534331,1737283857663,-660.46,0.00019452,2]
[349534332,1737283857672,-857.18,0.00019452,2]
[349534333,1737283857681,-2515.58,0.00019452,2]
[349534334,1737283857690,-500.0,0.00019452,2]
[349534335,1737283857700,-500.0,0.00019452,2]
[349534336,1737283857711,-500.0,0.00019452,2]
[349534337,1737283857722,-1304.59,0.00019452,2]
[349534338,1737283857735,-500.0,0.00019452,2]
[349534339,1737283857745,-500.0,0.00019452,2]
[349534340,1737283857757,-1399.53,0.00019452,2]
[349534341,1737283857767,-500.0,0.00019452,2]
[349534342,1737283857776,-500.0,0.00019452,2]
[349534343,1737283857785,-263.24391666,0.00019452,2]
[349534344,1737283857797,-500.0,0.00019452,2]
[349534345,1737283857806,-961.23,0.00019452,2]
[349534346,1737283857815,-506.84448933,0.00019452,2]
[349534347,1737283857827,-500.0,0.00019452,2]
[349534348,1737283857836,-6814.74,0.00019452,2]
[349534349,1737283857845,-500.0,0.00019452,2]
[349534350,1737283857854,-500.0,0.00019452,2]
[349534351,1737283857864,-563.53,0.00019452,2]
[349534352,1737283857874,-505.14738072,0.00019452,2]
[349534353,1737283857883,-500.0,0.00019452,2]
[349534354,1737283857892,-2694.65,0.00019452,2]
[349534355,1737283857901,-500.0,0.00019452,2]
[349534357,1737283857911,-500.0,0.00019452,2]
[349534358,1737283857922,-500.0,0.00019452,2]
[349534359,1737283857931,-500.0,0.00019452,2]
[349534360,1737283857940,-2319.64,0.00019452,2]
[349534361,1737283857950,-2281.0,0.00019452,2]
[349534362,1737283857959,-500.0,0.00019452,2]
[349534363,1737283857968,-500.0,0.00019452,2]
[349534364,1737283857977,-500.0,0.00019452,2]
[349534365,1737283857987,-500.0,0.00019452,2]
[349534366,1737283857996,-500.0,0.00019452,2]
[349534367,1737283858006,-500.0,0.00019452,2]
[349534368,1737283858015,-500.0,0.00019452,2]
[349534369,1737283858024,-579.85,0.00019452,2]
[349534370,1737283858033,-437.60101049,0.00019452,2]
[349534371,1737283858042,-608.39,0.00019452,2]
[349534372,1737283858051,-500.0,0.00019452,2]
[349534373,1737283858060,-814.26,0.00019452,2]
[349534374,1737283858069,-500.0,0.00019452,2]
[349534375,1737283858079,-666.3,0.00019452,2]
[349534376,1737283858089,-1602.86,0.00019452,2]
[349534377,1737283858099,-510.93,0.00019452,2]
[349534378,1737283858108,-500.0,0.00019452,2]
[349534379,1737283858117,-1636.5,0.00019452,2]
[349534380,1737283858127,-500.0,0.00019452,2]
[349534381,1737283858136,-500.0,0.00019452,2]
[349534382,1737283858145,-500.0,0.00019452,2]
[349534383,1737283858155,-293.317047,0.00019452,2]
[349534384,1737283858165,-500.0,0.00019452,2]
[349534385,1737283858175,-500.0,0.00019452,2]
[349534386,1737283858184,-626.38,0.00019452,2]
[349534387,1737283858193,-780.64,0.00019452,2]
[349534388,1737283858203,-1000.0,0.00019452,2]
[349534389,1737283858212,-633.29,0.00019452,2]
[349534390,1737283858221,-500.0,0.00019452,2]
[349534391,1737283858230,-500.0,0.00019452,2]
[349534392,1737283858239,-500.0,0.00019452,2]
[349534393,1737283858249,-500.0,0.00019452,2]
[349534394,1737283858262,-500.0,0.00019452,2]
[349534395,1737283858271,-500.0,0.00019452,2]
[349534396,1737283858280,-1313.29,0.00019452,2]
[349534397,1737283858290,-500.0,0.00019452,2]
[349534398,1737283858300,-500.0,0.00019452,2]
[349534399,1737283858309,-659.22,0.00019452,2]
[349534400,1737283858318,-917.59,0.00019452,2]
[349534401,1737283858328,-500.0,0.00019452,2]
[349534402,1737283858339,-500.0,0.00019452,2]
[349534403,1737283858348,-500.0,0.00019452,2]
[349534404,1737283858358,-562.37,0.00019452,2]
[349534405,1737283858367,-633.86,0.00019452,2]
[349534406,1737283858376,-497.050586,0.00019452,2]
[349534407,1737283858385,-515.22520554,0.00019452,2]
[349534408,1737283858395,-1551.56,0.00019452,2]
[349534409,1737283858404,-500.0,0.00019452,2]
[349534410,1737283858413,-500.0,0.00019452,2]
[349534411,1737283858423,-500.0,0.00019452,2]
[349534412,1737283858432,-1631.28,0.00019452,2]
[349534413,1737283858441,-497.050586,0.00019452,2]
[349534414,1737283858450,-500.0,0.00019452,2]
[349534415,1737283858459,-509.87,0.00019452,2]
[349534416,1737283858468,-500.0,0.00019452,2]
[349534417,1737283858477,-500.0,0.00019452,2]
[349534418,1737283858486,-500.0,0.00019452,2]
[349534419,1737283858495,-500.0,0.00019452,2]
[349534420,1737283858504,-11562.91,0.00019452,2]
[349534421,1737283858513,-500.0,0.00019452,2]
[349534422,1737283858522,-500.0,0.00019452,2]
[349534423,1737283858531,-500.0,0.00019452,2]
[349534424,1737283858539,-2945.05,0.00019452,2]
[349534425,1737283858548,-1035.44,0.00019452,2]
[349534426,1737283858557,-1288.18,0.00019452,2]
[349534427,1737283858566,-500.0,0.00019452,2]
[349534428,1737283858575,-500.0,0.00019452,2]
[349534429,1737283858584,-500.0,0.00019452,2]
[349534430,1737283858593,-604.12,0.00019452,2]
[349534431,1737283858717,-701.15,0.00019452,2]
[349534432,1737283858727,-500.0,0.00019452,2]
[349534433,1737283858736,-500.0,0.00019452,2]
[349534434,1737283858746,-684.27,0.00019452,2]
[349534435,1737283858755,-500.0,0.00019452,2]
[349534436,1737283858764,-500.0,0.00019452,2]
[349534437,1737283858773,-726.31,0.00019452,2]
[349534438,1737283858782,-693.12,0.00019452,2]
[349534439,1737283858791,-500.0,0.00019452,2]
[349534440,1737283858800,-1243.35,0.00019452,2]
[349534441,1737283858809,-500.0,0.00019452,2]
[349534442,1737283858818,-500.0,0.00019452,2]
[349534443,1737283858827,-500.0,0.00019452,2]
[349534444,1737283858836,-538.3407219,0.00019452,2]
[349534445,1737283858845,-583.23,0.00019452,2]
[349534446,1737283858854,-500.0,0.00019452,2]
[349534447,1737283858863,-500.0,0.00019452,2]
[349534448,1737283858872,-5110.0,0.00019463,7]
[349534449,1737283858882,-500.0,0.00019473,2]
[349534450,1737283858891,-500.0,0.00019473,2]
[349534451,1737283858900,-500.0,0.00019473,2]
[349534452,1737283858910,-500.85161581,0.00019473,2]
[349534453,1737283858920,-500.0,0.00019473,2]
[349534454,1737283858929,-500.0,0.00019473,2]
[349534455,1737283858938,-1009.2395,0.00019498,2]
[349534456,1737283858947,-1649258.62,0.000195,15]
[349534457,1737283858956,-8766.48,0.000195,18]
[349534458,1737283858966,-99888.67771303,0.000195,18]
[349534459,1737283858975,-7533.25354617,0.000195,2]
[349534460,1737283858984,-2101.76,0.000195,2]
[349534461,1737283858993,-151.0,0.000195,2]
[349534462,1737283859002,-210.962257,0.000195,2]
[349534463,1737283859011,-165.177093,0.000195,2]
[349534464,1737283859021,-165.177093,0.000195,2]
[349534465,1737283859030,-156.895581,0.000195,2]
[349534466,1737283859039,-156.895581,0.000195,2]
[349534467,1737283859048,-215.623532,0.000195,2]
[349534468,1737283859057,-215.623532,0.000195,2]
[349534469,1737283859066,-151.0,0.000195,2]
[349534470,1737283859076,-1499.614895,0.000195,2]
[349534471,1737283859085,-151.0,0.000195,2]
[349534472,1737283859095,-1499.614895,0.000195,2]
[349534473,1737283859104,-151.0,0.000195,2]
[349534474,1737283859113,-182.23358,0.000195,2]
[349534475,1737283859122,-151.0,0.000195,2]
[349534476,1737283859131,-1394.781451,0.000195,2]
[349534477,1737283859140,-1394.781451,0.000195,2]
[349534478,1737283859150,-497.050586,0.000195,2]
[349534479,1737283859159,-497.050586,0.000195,2]
[349534480,1737283859169,-203.94393132,0.00019525,2]
[349534481,1737283859179,-500.0,0.00019588,2]
[349534482,1737283859188,-871.3353095,0.0001961,2]
[349534483,1737283859198,-5800.0,0.00019683,2]
[349534484,1737283859207,-5800.0,0.00019691,2]
[349534485,1737283859216,-500.0,0.000197,2]
[349534486,1737283859226,-501.28,0.000197,2]
[349534487,1737283859235,-5800.0,0.000197,2]
[349534488,1737283859248,-158.21606905,0.000197,2]
[349534489,1737283859261,-158.21606905,0.000197,2]
[349534490,1737283859273,-158.21606905,0.000197,2]
[349534491,1737283859283,-158.21606905,0.000197,2]
[349534492,1737283859293,-158.21606905,0.000197,2]
[349534493,1737283859303,-158.21606905,0.000197,2]
[349534494,1737283859312,-500.0,0.00019725,2]
[349534495,1737283859322,-693.970146,0.00019726,2]
[349534496,1737283859333,-1179.248694,0.00019726,2]
[349534497,1737283859344,-510.93467353,0.00019726,2]
[349534498,1737283859354,-500.0,0.00019726,2]
[349534499,1737283859363,-500.0,0.00019726,2]
[349534500,1737283859372,-415.82945194,0.00019726,2]
[349534501,1737283859381,-500.0,0.00019726,2]
[349534502,1737283859391,-500.0,0.00019726,2]
[349534503,1737283859400,-500.0,0.00019726,2]
[349534504,1737283859409,-500.0,0.00019726,2]
[349534505,1737283859420,-500.0,0.00019726,2]
[349534506,1737283859430,-561.55155761,0.00019726,2]
[349534507,1737283859439,-500.0,0.00019726,2]
[349534508,1737283859449,-500.0,0.00019726,2]
[349534509,1737283859459,-500.0,0.00019726,2]
[349534510,1737283859469,-500.0,0.00019726,2]
[349534511,1737283859480,-500.0,0.00019726,2]
[349534512,1737283859490,-468.42221932,0.00019726,2]
[349534513,1737283859500,-500.0,0.00019726,2]
[349534514,1737283859511,-500.0,0.00019726,2]
[349534515,1737283859521,-500.0,0.00019726,2]
[349534516,1737283859530,-500.0,0.00019726,2]
[349534517,1737283859540,-500.0,0.00019726,2]
[349534518,1737283859550,-500.0,0.00019726,2]
[349534519,1737283859559,-500.0,0.00019726,2]
[349534520,1737283859569,-879.97,0.00019726,2]
[349534521,1737283859579,-538.6,0.00019726,2]
[349534522,1737283859589,-500.0,0.00019726,2]
[349534523,1737283859599,-500.0,0.00019726,2]
[349534524,1737283859609,-500.0,0.00019726,2]
[349534525,1737283859620,-500.0,0.00019726,2]
[349534526,1737283859630,-500.0,0.00019726,2]
[349534527,1737283859640,-506.32,0.00019726,2]
[349534528,1737283859651,-500.0,0.00019726,2]
[349534529,1737283859661,-500.0,0.00019726,2]
[349534530,1737283859672,-507.94226693,0.00019726,2]
[349534531,1737283859682,-523.31264585,0.00019726,2]
[349534532,1737283859692,-515.27338558,0.00019726,2]
[349534533,1737283859702,-1099.14,0.00019726,2]
[349534534,1737283859712,-512.53305179,0.00019726,2]
[349534535,1737283859721,-500.0,0.00019726,2]
[349534536,1737283859730,-500.0,0.00019726,2]
[349534537,1737283859740,-500.0,0.00019726,2]
[349534538,1737283859749,-672.06,0.00019726,2]
[349534539,1737283859758,-500.0,0.00019726,2]